bitfinex/quotes_ETHUSD_20241130
["timestamp","ask_amount","ask_price","bid_price","bid_amount"]
[1732958281185,2.0,3690.4,3690.3,0.02863579]
[1732958281491,2.0,3690.4,3690.3,2.7098]
[1732958281773,2.0,3690.4,3690.3,2.73843579]
[1732958283391,2.0,3690.4,3690.3,3.52533579]
[1732958284081,4.0,3690.4,3690.3,3.52533579]
[1732958284764,6.0,3690.4,3690.3,3.52533579]
[1732958285260,8.0,3690.4,3690.3,3.52533579]
[1732958285681,8.0,3690.4,3690.3,2.73843579]
[1732958285984,10.0,3690.4,3690.3,2.73843579]
[1732958286339,11.98623821,3690.4,3690.3,0.02863579]
[1732958286766,11.98623821,3690.4,3689.9,2.8694825]
[1732958286979,2.06338211,3690.3,3689.9,0.1593925]
[1732958287149,2.06338211,3690.3,3690.0,0.0271747]
[1732958287334,2.06338211,3690.3,3689.9,2.8694625]
[1732958287538,3.73931014,3690.3,3689.9,0.1593925]
[1732958287844,3.73931014,3690.3,3690.0,0.02721367]
[1732958288048,3.73931014,3690.3,3689.9,0.1593925]
[1732958289353,0.03387625,3690.2,3689.9,0.1593925]
[1732958289540,0.03387625,3690.2,3690.0,0.02725264]
[1732958289541,2.70995,3690.1,3690.0,0.02725264]
[1732958289741,0.7605,3689.9,3688.2,0.7505]
[1732958289945,0.7605,3688.9,3688.0,52.71148]
[1732958290241,2.41747279,3689.0,3688.6,2.71104]
[1732958290441,2.41747279,3689.0,3688.9,0.0255953]
[1732958290657,2.82388211,3689.4,3688.9,0.0255953]
[1732958290851,4.27529632,3689.4,3689.0,2.71073]
[1732958291052,8.98,3689.7,3689.3,2.71054]
[1732958291341,8.98,3689.7,3689.4,0.02552813]
[1732958291871,8.98,3689.7,3689.5,2.71035]
[1732958292195,0.7605,3690.1,3689.7,2.71024]
[1732958292344,0.7605,3690.1,3689.8,2.71016]
[1732958292544,1.94060943,3690.1,3689.8,2.73579564]
[1732958292792,1.94060943,3690.1,3689.8,2.71016]
[1732958292944,2.06338211,3690.2,3690.0,2.70995]
[1732958293144,10.7721,3690.4,3690.3,2.7098]
[1732958293145,10.0,3690.4,3690.3,2.7098]
[1732958293592,10.0,3690.4,3690.3,2.7353242]
[1732958294700,10.0,3690.4,3690.3,0.0255242]
[1732958294984,12.06338211,3690.4,3690.3,0.0255242]
[1732958295488,12.06338211,3690.4,3690.1,2.70995]
[1732958295662,12.06338211,3690.4,3690.3,0.0255242]
[1732958295861,12.06338211,3690.4,3690.0,2.70996]
[1732958296073,12.06338211,3690.4,3690.3,0.0255242]
[1732958296275,12.06338211,3690.4,3690.0,2.70996]
[1732958296465,12.06338211,3690.4,3690.3,0.0255242]
[1732958296663,12.06338211,3690.4,3689.9,2.71004]
[1732958296973,12.06338211,3690.4,3690.0,2.73552448]
[1732958297376,12.06338211,3690.4,3690.1,2.70993]
[1732958297618,12.06338211,3690.4,3690.2,2.70987]
[1732958297749,12.06338211,3690.4,3690.2,2.73540763]
[1732958298451,12.06338211,3690.4,3690.3,2.7098]
[1732958298652,12.06338211,3690.4,3690.3,2.7353242]
[1732958299292,10.0,3690.4,3690.3,3.5683242]
[1732958300681,10.0,3690.4,3690.3,4.1183242]
[1732958304068,10.0,3690.4,3690.3,4.3891242]
[1732958304883,10.0,3690.4,3690.3,4.40310451]
[1732958307710,10.0,3690.4,3690.3,4.13230451]
[1732958308409,10.0,3690.4,3690.3,4.0928]
[1732958310122,10.0,3690.4,3690.3,3.2598]
[1732958310321,10.0,3690.4,3690.3,4.0365]
[1732958313431,8.64513,3690.4,3690.3,7.0365]
[1732958313594,5.93539,3690.4,3690.3,7.0365]
[1732958317103,1.75348001,3690.4,3690.3,7.56790135]
[1732958317299,0.7931,3691.6,3691.5,3.25892]
[1732958322102,0.7931,3692.1,3691.7,2.70877]
[1732958322329,0.7931,3692.1,3691.6,0.55]
[1732958322651,0.7931,3692.1,3692.0,2.70855]
[1732958322802,0.7931,3692.1,3692.0,3.25855]
[1732958323915,0.7931,3692.4,3692.2,0.55]
[1732958324268,0.7931,3692.4,3692.3,2.70833]
[1732958324448,0.7931,3692.4,3692.1,3.25843]
[1732958324650,0.7931,3692.4,3692.2,2.7084]
[1732958325167,1.07874821,3692.4,3692.2,2.7084]
[1732958325458,1.07874821,3692.4,3692.1,0.55]
[1732958326058,0.7931,3692.1,3691.3,2.97995]
[1732958326261,0.7931,3692.1,3689.9,2.71009]
[1732958326262,4.77220211,3691.7,3690.9,2.7093]
[1732958326418,2.70891,3691.6,3690.9,2.70929]
[1732958326618,0.7931,3691.2,3690.5,2.70964]
[1732958326819,0.7931,3691.2,3689.4,0.1]
[1732958326820,3.85406734,3691.2,3690.3,2.70976]
[1732958327032,0.7931,3690.8,3690.3,2.70976]
[1732958327345,0.7931,3690.8,3690.3,2.70974]
[1732958328225,0.7931,3690.8,3690.4,0.55]
[1732958328730,0.7931,3690.8,3690.2,0.55]
[1732958329269,0.7931,3690.8,3690.4,0.55]
[1732958329427,0.7931,3690.8,3690.4,3.25971]
[1732958330837,0.7931,3690.8,3690.2,3.25983]
[1732958331057,0.7931,3690.8,3690.2,0.55]
[1732958331244,0.7931,3690.8,3690.2,3.25986]
[1732958332068,0.7931,3690.8,3690.2,0.55]
[1732958332271,0.7931,3690.8,3690.4,0.55]
[1732958332642,2.06338211,3690.5,3690.1,0.55]
[1732958332879,3.46095,3690.4,3689.4,0.7646]
[1732958333074,0.7512,3690.4,3689.6,2.7103]
[1732958333248,0.7512,3690.4,3689.7,2.71017]
[1732958334148,0.7512,3690.4,3689.6,2.71027]
[1732958334345,0.7512,3690.4,3690.0,0.55]
[1732958336268,0.7512,3690.4,3690.0,3.26002]
[1732958336569,0.7512,3690.4,3689.4,0.7646]
[1732958336570,0.7512,3690.7,3689.8,0.55]
[1732958336745,0.7512,3690.7,3690.5,0.55]
[1732958337844,0.7512,3690.7,3690.3,0.55]
[1732958338041,0.7512,3690.7,3690.4,0.55]
[1732958338444,0.7512,3690.7,3690.2,3.25987]
[1732958338889,0.7512,3690.7,3690.2,0.55]
[1732958340598,2.06338211,3690.5,3689.9,3.26006]
[1732958340914,0.7512,3690.4,3689.7,3.26018]
[1732958341066,0.7512,3690.4,3689.9,0.55]
[1732958341262,0.7512,3690.4,3689.7,0.55]
[1732958341263,2.70981,3690.3,3689.6,2.7103]
[1732958341708,2.70981,3690.3,3689.7,2.71023]
[1732958342768,2.70981,3690.3,3689.8,0.55]
[1732958343797,2.70981,3690.3,3689.9,0.01443825]
[1732958344119,0.7512,3690.4,3689.9,0.01443825]
[1732958344702,0.7512,3690.4,3690.0,0.55]
[1732958344905,0.7512,3690.8,3690.3,2.70975]
[1732958345085,0.7512,3690.8,3690.4,0.55]
[1732958345506,0.7512,3690.8,3690.2,0.55]
[1732958345708,0.7512,3690.8,3690.3,0.55]
[1732958345909,0.7512,3690.8,3690.3,0.56381185]
[1732958346110,2.06338211,3690.9,3690.3,0.56381185]
[1732958346111,2.06338211,3690.9,3690.6,0.55]
[1732958346421,2.06338211,3690.9,3690.6,3.25956]
[1732958346847,2.06338211,3690.9,3690.6,0.55]
[1732958346993,2.06338211,3690.9,3690.8,0.55]
[1732958347758,2.06338211,3691.3,3691.1,3.25916]
[1732958348423,2.06338211,3691.7,3691.3,0.55]
[1732958348737,2.06338211,3691.7,3691.3,3.25902]
[1732958349924,2.06338211,3691.7,3691.3,0.55]
[1732958350140,2.41513945,3691.7,3691.2,0.55]
[1732958350443,2.41513945,3691.7,3691.3,0.55]
[1732958351203,2.41513945,3691.7,3691.3,3.25907]
[1732958351494,2.41513945,3691.7,3691.4,0.55]
[1732958352045,2.41513945,3691.7,3691.4,3.25893]
[1732958352638,2.41513945,3691.7,3691.0,0.7682]
[1732958352639,2.41513945,3691.7,3691.6,3.25885]
[1732958352833,2.06338211,3692.1,3691.6,0.55]
[1732958353137,2.06338211,3692.1,3691.8,2.70869]
[1732958353350,2.06338211,3692.1,3691.9,0.55]
[1732958353644,0.35175734,3692.0,3691.9,0.55]
[1732958355092,0.35175734,3692.0,3691.7,0.55]
[1732958355312,0.35175734,3692.0,3691.8,0.55]
[1732958355715,0.35175734,3692.0,3691.6,0.55]
[1732958356131,0.35175734,3692.0,3691.6,2.70879]
[1732958356333,0.35175734,3692.0,3691.7,0.55]
[1732958356733,0.35175734,3692.0,3691.8,0.55]
[1732958357626,0.35175734,3692.0,3691.6,0.55]
[1732958357859,0.35175734,3692.0,3691.7,2.70875]
[1732958358062,0.35175734,3692.0,3691.8,3.25869]
[1732958358776,0.34945167,3692.0,3691.8,3.25869]
[1732958359576,0.34945167,3692.0,3691.7,2.70877]
[1732958359775,0.34945167,3692.0,3691.8,0.55]
[1732958361288,0.34945167,3692.0,3691.6,0.55]
[1732958361488,0.34945167,3692.0,3691.7,0.55]
[1732958362495,0.34945167,3692.0,3691.4,2.70898]
[1732958362854,0.34945167,3692.0,3690.9,2.70931]
[1732958363097,0.34945167,3692.0,3691.6,2.7088]
[1732958363303,0.34945167,3692.0,3691.1,2.70921]
[1732958363499,0.34945167,3692.0,3691.6,2.7088]
[1732958363702,0.34945167,3692.0,3691.3,2.70899]
[1732958363855,0.34945167,3692.0,3691.6,0.7088]
[1732958364056,0.34945167,3692.0,3691.3,2.70899]
[1732958364385,0.34945167,3692.0,3691.1,2.70921]
[1732958364696,0.34945167,3692.0,3691.2,0.01378525]
[1732958364893,2.06338211,3692.1,3691.8,0.70864]
[1732958365111,2.06338211,3692.1,3691.6,2.70884]
[1732958365685,0.8063,3692.2,3691.2,0.01378525]
[1732958366004,2.86968211,3692.2,3691.7,2.70877]
[1732958366152,3.46262784,3692.2,3691.3,2.70906]
[1732958366352,3.46262784,3692.2,3691.4,2.70895]
[1732958366353,2.06338211,3691.8,3691.4,2.70895]
[1732958367008,0.35156521,3692.1,3691.5,2.7089]
[1732958367298,2.86968211,3692.2,3691.7,2.70877]
[1732958367470,2.86968211,3692.2,3691.3,0.01378507]
[1732958367669,2.86968211,3692.2,3691.6,0.70881]
[1732958367880,2.86968211,3692.2,3691.4,2.70899]
[1732958368255,3.22124732,3692.2,3691.6,2.7088]
[1732958368470,3.22124732,3692.2,3691.4,2.70899]
[1732958368671,3.22124732,3692.2,3691.6,0.7088]
[1732958368865,3.22124732,3692.2,3691.6,2.70879]
[1732958369082,3.22124732,3692.2,3691.7,2.70877]
[1732958369512,3.22124732,3692.2,3691.6,2.7088]
[1732958369670,3.22124732,3692.2,3691.6,2.6588]
[1732958369875,0.35156521,3692.1,3691.4,2.70897]
[1732958370083,0.35156521,3692.1,3691.1,0.0137851]
[1732958370283,0.35156521,3692.1,3691.6,2.7088]
[1732958370818,0.35156521,3692.1,3691.5,2.70886]
[1732958371314,2.86968211,3692.2,3691.6,0.80098497]
[1732958371500,1.15116521,3692.6,3692.2,2.70837]
[1732958371699,0.7996,3692.9,3692.4,2.70821]
[1732958372000,0.7996,3692.9,3692.2,2.70839]
[1732958372191,0.7996,3692.9,3691.7,2.70871]
[1732958372374,0.7996,3692.9,3692.1,2.70847]
[1732958372576,0.7996,3692.9,3692.3,2.70827]
[1732958372912,0.7996,3692.9,3692.1,2.70847]
[1732958373114,0.7996,3692.9,3691.9,2.70862]
[1732958373412,1.15116521,3692.9,3691.9,2.70858]
[1732958373730,1.15116521,3692.9,3691.4,2.70894]
[1732958373731,1.15116521,3692.9,3691.6,2.70885]
[1732958373875,1.15116521,3692.9,3692.0,0.70849]
[1732958374068,1.15116521,3692.9,3691.9,0.55]
[1732958374486,1.15116521,3692.9,3691.9,0.7816]
[1732958374699,1.15116521,3692.9,3691.9,2.70861]
[1732958374875,1.15116521,3692.9,3691.5,0.53508659]
[1732958375076,1.15116521,3692.9,3691.7,2.70875]
[1732958375273,2.06338211,3692.7,3691.4,0.2709]
[1732958375478,0.7996,3692.2,3691.0,0.2709]
[1732958375706,0.7996,3692.2,3691.4,0.2709]
[1732958375887,0.7996,3692.2,3691.1,2.70921]
[1732958376214,0.7996,3692.2,3691.3,2.709]
[1732958376378,0.7996,3692.2,3691.1,2.70921]
[1732958377105,0.7996,3692.2,3691.1,0.70921]
[1732958377410,0.7996,3692.2,3690.9,0.54079538]
[1732958377411,0.7996,3692.2,3691.3,2.70906]
[1732958377597,0.7996,3692.2,3691.3,0.70906]
[1732958377824,0.7996,3692.2,3691.3,3.2709]
[1732958378006,0.7996,3692.2,3691.3,0.2709]
[1732958378180,0.7996,3692.2,3691.0,2.70929]
[1732958378518,0.7996,3692.2,3691.0,0.70929]
[1732958378718,0.7996,3692.2,3690.9,0.54079538]
[1732958378918,0.7996,3692.2,3690.9,2.98026]
[1732958379215,0.7996,3692.2,3690.8,2.70943]
[1732958379386,0.7996,3692.2,3691.0,0.70928]
[1732958379387,1.15116521,3692.2,3691.0,0.70928]
[1732958379604,1.15116521,3692.2,3690.9,2.70931]
[1732958379605,4.72270294,3692.2,3690.9,2.70931]
[1732958379796,0.35156521,3692.1,3690.7,2.70951]
[1732958379990,0.35156521,3692.1,3691.0,2.70929]
[1732958380223,0.35156521,3692.1,3690.9,3.0]
[1732958380437,0.35156521,3692.1,3691.1,0.2709]
[1732958380921,0.35156521,3692.1,3690.9,2.70935]
[1732958381125,0.35156521,3692.1,3690.7,5.70951]
[1732958381418,0.35156521,3692.1,3690.8,0.2709]
[1732958381785,0.35156521,3692.1,3690.9,2.70931]
[1732958382321,0.35156521,3692.1,3690.7,0.1]
[1732958382477,1.15116521,3692.2,3690.6,0.2709]
[1732958382678,0.35156521,3692.1,3691.2,0.2709]
[1732958382984,0.35156521,3692.1,3690.9,2.70936]
[1732958383683,0.35156521,3692.1,3691.0,0.2709]
[1732958384022,0.35156521,3692.1,3691.0,2.98018]
[1732958384535,0.7616,3692.0,3691.0,2.98018]
[1732958384739,0.7616,3692.0,3691.2,0.2709]
[1732958384909,1.11316521,3692.0,3691.2,0.2709]
[1732958385530,1.11316521,3692.0,3690.9,3.0]
[1732958385687,1.11316521,3692.0,3691.0,2.70928]
[1732958386037,1.21316521,3692.0,3691.1,0.2709]
[1732958386327,0.35156521,3691.9,3690.5,3.0]
[1732958386629,0.7616,3691.8,3690.6,2.70956]
[1732958386840,0.7616,3691.8,3690.6,0.70956]
[1732958387135,0.7616,3691.8,3690.4,2.70971]
[1732958387302,1.11316521,3691.8,3690.4,2.70971]
[1732958387879,0.7616,3691.4,3690.0,2.70998]
[1732958388194,0.35156521,3691.3,3690.0,2.70998]
[1732958388396,0.35156521,3691.3,3690.1,0.2709]
[1732958388840,0.35156521,3691.3,3691.0,0.01443825]
[1732958389052,0.7513,3691.2,3691.0,0.01443825]
[1732958389212,0.7513,3691.2,3690.2,0.2709]
[1732958389213,0.39118652,3691.1,3690.2,0.2709]
[1732958389403,0.7513,3691.2,3690.2,0.2709]
[1732958389944,3.46045,3691.2,3690.2,0.2709]
[1732958390120,2.70929,3691.0,3690.0,0.2709]
[1732958390309,0.7513,3690.9,3690.0,0.2709]
[1732958390641,1.10286521,3690.9,3690.0,0.2709]
[1732958391090,0.35156521,3690.8,3689.7,0.2709]
[1732958391295,0.7513,3690.7,3689.9,0.2709]
[1732958391531,0.1,3690.6,3689.9,0.2709]
[1732958391741,3.16624732,3690.7,3689.9,0.2709]
[1732958391938,0.1,3690.6,3689.9,0.2709]
[1732958392340,0.1,3690.6,3689.5,0.2709]
[1732958392636,0.1,3690.6,3689.7,0.2709]
[1732958392858,3.16624732,3690.7,3689.7,0.2709]
[1732958393731,3.16624732,3690.7,3689.8,0.2709]
[1732958396950,0.35156521,3690.1,3688.9,2.71082]
[1732958397150,0.814,3690.0,3688.9,2.71082]
[1732958397348,1.16556521,3690.0,3688.9,2.71082]
[1732958397704,2.41494732,3689.9,3688.9,0.2709]
[1732958398147,0.814,3689.8,3688.9,0.2709]
[1732958398452,0.814,3689.8,3688.9,3.0]
[1732958400946,0.814,3689.8,3688.8,3.28460523]
[1732958401755,0.814,3689.8,3688.8,2.71242218]
[1732958401952,1.16402579,3689.8,3688.9,3.0]
[1732958402310,1.16402579,3689.8,3688.8,0.00154218]
[1732958403005,2.06338211,3689.5,3688.8,0.00154218]
[1732958403209,0.814,3689.0,3688.8,0.00154218]
[1732958408425,0.7619,3688.9,3688.8,0.00154218]
[1732958412386,0.8619,3688.9,3688.8,0.00154218]
[1732958414127,1.46049979,3688.9,3688.8,0.00154218]
[1732958414489,4.52135558,3688.9,3688.8,0.00154218]
[1732958420037,4.50691733,3688.9,3688.8,0.00154218]
[1732958420835,4.15689154,3688.9,3688.8,0.00154218]
[1732958423016,4.05689154,3688.9,3688.8,0.00154218]
[1732958423211,4.15689154,3688.9,3688.8,0.00154218]
[1732958423731,10.27975212,3688.9,3688.0,50.0]
[1732958423925,5.68620211,3688.1,3688.0,46.0001]
[1732958424140,6.30485444,3688.1,3688.0,46.0001]
[1732958424360,0.8114,3686.4,3684.9,0.7874]
[1732958424666,2.87478211,3686.4,3685.2,2.98443]
[1732958424955,0.1,3686.3,3685.2,0.2709]
[1732958425160,0.1,3686.3,3684.6,0.14128763]
[1732958425310,3.99166579,3686.3,3684.3,2.7142]
[1732958425513,0.1,3686.5,3685.4,2.71337]
[1732958425743,2.16338211,3686.7,3685.5,2.71333]
[1732958426059,2.16338211,3686.7,3685.5,2.71332]
[1732958426449,2.06338211,3686.7,3686.0,1.0374]
[1732958426758,0.1,3687.1,3686.3,0.55]
[1732958426759,2.16338211,3687.1,3686.3,0.55]
[1732958426957,0.1,3686.8,3686.2,0.55036875]
[1732958427253,0.1,3686.6,3686.2,0.1593925]
[1732958429886,2.16338211,3686.3,3686.2,0.1593925]
[1732958430041,0.1,3686.5,3686.2,0.1593925]
[1732958430750,0.51402579,3686.5,3686.2,0.1593925]
[1732958431680,0.1,3686.5,3686.2,0.1593925]
[1732958432189,0.51402579,3686.5,3686.3,0.04840699]
[1732958432543,0.51402579,3686.5,3686.2,0.1593925]
[1732958433475,0.1,3686.7,3686.3,0.04942168]
[1732958433681,0.1,3686.7,3686.3,0.55]
[1732958434013,1.5559,3686.9,3686.4,0.0494073]
[1732958434014,0.1,3686.8,3686.4,0.0494073]
[1732958434163,0.51402579,3687.0,3686.5,0.55]
[1732958434362,0.1,3686.8,3686.5,0.55]
[1732958434668,0.1,3686.8,3686.6,0.04937855]
[1732958435609,0.1,3686.8,3686.2,0.1593925]
[1732958435610,0.1,3686.5,3686.3,0.55]
[1732958435779,0.1,3686.3,3686.2,0.1593925]
[1732958436103,0.54793914,3686.3,3686.2,0.1593925]
[1732958436275,0.51402579,3686.3,3686.2,0.1593925]
[1732958437264,2.06992579,3686.3,3686.2,0.1593925]
[1732958437766,0.1,3686.6,3686.2,0.1593925]
[1732958438008,0.1,3686.6,3686.2,0.47162875]
[1732958438566,0.1,3686.6,3686.3,2.71274]
[1732958438771,0.1,3686.6,3686.3,0.55]
[1732958441445,0.1,3686.6,3686.5,2.7126]
[1732958441644,0.1,3687.0,3686.7,2.71241]
[1732958441816,0.1,3687.2,3686.8,3.26237]
[1732958442144,0.1,3687.2,3687.0,2.7122]
[1732958442738,0.1,3687.2,3686.8,3.26237]
[1732958443646,0.1,3687.2,3687.1,2.71215]
[1732958444046,0.1,3687.2,3687.1,2.75103979]
[1732958444405,0.1,3687.2,3687.1,0.03888979]
[1732958444604,0.1,3687.2,3687.0,0.55]
[1732958444907,0.1,3687.2,3687.1,0.03758058]
[1732958445103,0.1,3687.2,3687.1,0.58758058]
[1732958445341,0.1,3687.2,3687.1,0.55]
[1732958445540,0.1,3687.4,3687.2,3.26207]
[1732958445841,0.1,3687.8,3687.3,0.58628627]
[1732958446406,0.1,3687.8,3687.3,0.03628627]
[1732958446603,0.1,3687.8,3687.2,2.71202]
[1732958446807,0.1,3687.8,3687.3,0.03506336]
[1732958447028,0.1,3687.8,3687.2,2.71202]
[1732958447244,0.1,3687.8,3687.3,0.03489863]
[1732958447556,0.46694246,3687.8,3687.1,2.71213]
[1732958447753,0.46694246,3687.8,3687.4,0.03370212]
[1732958447939,0.46694246,3687.8,3687.1,2.71213]
[1732958448151,0.46694246,3687.8,3687.5,0.0325505]
[1732958448356,0.46694246,3687.8,3687.1,0.55]
[1732958448681,0.1,3687.8,3687.1,3.80049]
[1732958448828,0.1,3687.8,3687.4,2.71187]
[1732958449028,0.1,3687.8,3687.5,2.74330116]
[1732958449532,0.1,3687.8,3687.6,2.71178]
[1732958449766,0.1,3687.8,3687.6,2.7420758]
[1732958449978,0.1,3687.8,3687.7,2.71171]
[1732958450325,0.1,3687.8,3687.7,0.02929544]
[1732958450824,0.1,3687.8,3687.5,2.71184]
[1732958451070,0.1,3687.8,3687.6,0.02735927]
[1732958451291,0.1,3687.8,3687.3,2.712]
[1732958451565,0.1,3687.8,3687.7,0.02734491]
[1732958451782,0.1,3687.8,3687.3,2.712]
[1732958452255,0.1,3687.6,3687.4,0.02556533]
[1732958452460,0.1,3687.6,3686.3,2.71268]
[1732958452763,0.1,3687.6,3687.5,0.02555096]
[1732958452966,0.1,3687.6,3686.9,2.7123]
[1732958453166,0.1,3687.2,3686.9,2.7123]
[1732958454173,2.06338211,3687.9,3687.0,2.71219]
[1732958454174,0.1,3687.5,3687.0,2.71219]
[1732958454327,1.5367,3687.4,3686.9,2.7123]
[1732958454527,0.1,3687.2,3686.9,2.7123]
[1732958455127,0.1,3687.2,3686.7,2.71244]
[1732958455563,0.1,3687.2,3686.7,2.71239]
[1732958456436,0.1,3687.0,3686.5,2.71258]
[1732958458276,0.1,3686.7,3686.5,2.71258]
[1732958458491,0.1,3687.1,3686.4,2.71266]
[1732958458782,0.1,3686.9,3686.7,2.71243]
[1732958458938,0.1,3687.1,3686.5,2.71256]
[1732958459141,0.1,3687.1,3686.4,2.71266]
[1732958459416,1.5367,3687.4,3686.4,2.71266]
[1732958459417,0.1,3686.6,3686.4,2.71266]
[1732958459684,0.1,3686.6,3686.5,2.7126]
[1732958459852,1.5367,3687.4,3686.5,2.7126]
[1732958459853,0.1,3687.0,3686.5,2.7126]
[1732958460041,0.1,3687.0,3686.6,2.71246]
[1732958460241,0.1,3687.0,3686.5,2.7126]
[1732958460441,0.1,3687.0,3686.6,2.71251]
[1732958460778,1.5367,3686.9,3686.5,2.71258]
[1732958460979,1.5367,3686.9,3686.8,2.71237]
[1732958461191,1.5367,3686.9,3686.5,2.71255]
[1732958461542,1.5367,3686.9,3686.6,2.71251]
[1732958461947,1.5367,3686.9,3686.4,2.7126]
[1732958462179,1.5367,3686.9,3686.6,2.71251]
[1732958462372,0.1,3687.0,3686.6,2.71251]
[1732958462685,0.1,3687.0,3686.8,2.71237]
[1732958462984,0.1,3686.6,3686.4,2.71266]
[1732958463225,0.1,3687.1,3686.8,3.26237]
[1732958463530,1.6367,3687.5,3687.1,2.71209]
[1732958463734,1.6367,3687.5,3687.2,2.71202]
[1732958463938,0.1,3687.8,3687.7,2.71171]
[1732958464086,0.1,3687.8,3687.7,0.55]
[1732958464791,0.1,3687.8,3687.2,0.2709]
[1732958464988,0.1,3687.5,3687.2,0.2709]
[1732958465189,0.1,3687.3,3686.7,2.71243]
[1732958465493,0.1,3687.3,3686.5,0.2709]
[1732958465494,0.1,3687.3,3686.8,3.26237]
[1732958467327,0.1,3687.3,3686.8,0.55]
[1732958467992,0.1,3687.3,3686.7,0.55]
[1732958468187,0.1,3687.3,3686.8,2.71235]
[1732958468416,0.1,3687.5,3686.9,3.2623]
[1732958468800,0.1,3687.5,3687.0,2.71218]
[1732958468988,0.1,3687.5,3687.1,2.7121]
[1732958469187,0.1,3687.5,3687.2,2.71202]
[1732958469625,0.1,3687.5,3687.2,2.46202]
[1732958469927,0.1,3687.4,3687.2,2.46202]
[1732958470818,0.1,3687.4,3687.3,0.55]
[1732958472068,0.1,3687.4,3687.0,0.55]
[1732958472225,0.1,3687.4,3687.0,3.26218]
[1732958472957,0.1,3687.4,3687.0,0.55]
[1732958473374,0.1,3687.4,3686.8,0.55]
[1732958473543,0.1,3687.4,3687.0,2.71221]
[1732958473724,0.1,3687.4,3687.1,0.55]
[1732958474221,0.1,3687.4,3686.7,0.55]
[1732958474470,0.1,3687.1,3686.7,0.55]
[1732958475127,0.1,3687.1,3686.7,0.5]
[1732958476067,1.6593,3687.0,3686.7,0.5]
[1732958477643,0.1,3686.8,3686.3,0.55]
[1732958478325,0.1,3686.8,3686.3,3.26273]
[1732958479004,0.1,3686.8,3686.5,0.55]
[1732958479315,0.09427205,3686.8,3686.3,0.55]
[1732958480480,0.09427205,3686.6,3686.3,0.55]
[1732958482048,0.09427205,3686.6,3686.4,1.6419]
[1732958482249,0.09427205,3686.6,3686.5,0.5]
[1732958482541,0.09427205,3686.6,3686.3,2.71268]
[1732958482741,1.68637205,3686.6,3686.2,0.1593925]
[1732958483937,1.68637205,3686.6,3686.2,2.8721825]
[1732958484346,1.68637205,3686.6,3686.3,0.55]
[1732958486121,1.68637205,3686.6,3686.3,3.26273]
[1732958486302,1.68637205,3686.6,3686.3,0.55]
[1732958489755,0.09427205,3686.4,3686.3,0.55]
[1732958489935,0.09427205,3686.4,3686.2,0.1593925]
[1732958498744,0.46121451,3686.4,3686.2,0.1593925]
[1732958501864,1.96194246,3686.3,3686.2,0.1593925]
[1732958504843,0.09427205,3686.4,3686.3,0.55]
[1732958505042,0.09427205,3686.7,3686.3,1.39712125]
[1732958505270,0.09427205,3686.7,3686.3,0.55]
[1732958507451,0.09427205,3686.7,3686.5,0.55]
[1732958507635,0.09427205,3687.0,3686.5,3.26259]
[1732958507840,0.09427205,3687.0,3686.7,0.55]
[1732958508173,0.46121451,3687.0,3686.7,0.55]
[1732958508736,0.46121451,3687.0,3686.7,0.51340033]
[1732958508938,0.36694246,3686.9,3686.7,0.51340033]
[1732958510734,0.09427205,3687.0,3686.7,0.51340033]
[1732958511530,0.09427205,3687.0,3686.7,3.22580033]
[1732958511770,0.09427205,3687.0,3686.7,3.97740836]
[1732958512545,0.09427205,3687.0,3686.7,1.26500836]
[1732958513184,0.09427205,3687.0,3686.7,0.51340033]
[1732958514648,0.09427205,3686.7,3686.3,1.5777]
[1732958514849,0.09427205,3686.5,3686.2,0.1593925]
[1732958516746,0.09427205,3686.5,3686.3,0.55]
[1732958517484,0.09427205,3686.3,3686.2,0.1593925]
[1732958523687,0.09427205,3686.5,3686.2,0.1593925]
[1732958523900,0.09427205,3686.3,3686.2,0.1593925]
[1732958524081,0.09427205,3686.5,3686.2,0.1593925]
[1732958524273,0.09427205,3686.5,3686.3,0.55]
[1732958526483,0.09427205,3686.3,3686.2,0.1593925]
[1732958527014,0.09427205,3686.5,3686.2,1.7370925]
[1732958527610,0.09427205,3686.5,3686.2,0.1593925]
[1732958530020,2.09312018,3687.0,3686.2,0.1593925]
[1732958530174,0.09427205,3686.4,3686.2,0.1593925]
[1732958530365,0.09427205,3686.4,3686.2,0.69054765]
[1732958530769,0.09427205,3686.4,3686.2,0.1593925]
[1732958531710,1.5363,3686.3,3686.2,0.1593925]
[1732958531921,0.09427205,3686.4,3686.2,0.1593925]
[1732958532084,0.40364728,3686.9,3686.2,4.4833925]
[1732958532272,0.09427205,3687.0,3686.4,2.71261]
[1732958532668,0.09427205,3687.0,3686.5,2.71258]
[1732958532916,0.09427205,3687.0,3686.6,4.32372]
[1732958534115,0.09427205,3687.0,3686.6,1.6112]
[1732958534479,1.39428628,3687.0,3686.3,2.1612]
[1732958534709,1.39428628,3687.0,3686.3,4.87394]
[1732958534898,0.46121451,3687.0,3686.3,4.87394]
[1732958536136,0.09427205,3686.4,3686.2,0.1593925]
[1732958538137,2.80695205,3686.4,3686.2,0.1593925]
[1732958538328,0.09427205,3686.4,3686.2,0.1593925]
[1732958539835,1.5363,3686.3,3686.2,0.1593925]
[1732958540039,4.90240315,3686.3,3686.2,0.1593925]
[1732958540648,1.5363,3686.3,3686.2,0.1593925]
[1732958541645,0.09427205,3686.4,3686.2,0.1593925]
[1732958542817,0.09427205,3686.4,3686.2,0.1093925]
[1732958543313,0.09427205,3686.4,3686.2,0.0094725]
[1732958544155,0.46121451,3686.4,3686.2,0.0094725]
[1732958544442,0.25261401,3686.3,3685.5,1.6112]
[1732958544649,0.09427205,3686.2,3685.6,3.17279]